Workbook

Sheet Hoop_Coop (hidden)
A1: Hoop Coop
X3: Poultry Butler
X7: 5 Watt Solar Panel
X11: Water Heater
X15: Solar Interior Light
X19: Chicken Cam
T23: Hoop Coop
T24: Material | U24: Quantity | V24: Price | W24: Souce of Price
T25: Hardware Cloth | U25: N/A | V25: 79.63 | W25: https://www.homedepot.com/p/Acorn-International-1-2-in-x-4-ft-x-50-ft-Hardware-Cloth-HC24850/300180179
T26: Carriage Bolt (1/4-20” x 4”) | U26: 4 | V26: =0.73*U26 -> 2.92 | W26: https://www.homedepot.com/p/Everbilt-1-4-in-20-tpi-x-4-in-Galvanized-Coarse-Thread-Carriage-Bolt-803396/204633634
T27: Carriage Bolt (1/2" x 4”) | U27: 2 | V27: =U27*1.16 -> 2.32 | W27: https://www.homedepot.com/p/Everbilt-1-2-in-13-tpi-x-4-in-Zinc-Plated-Coarse-Thread-Carriage-Bolt-800436/204633589
T28: Lock Washer (1/2") | U28: 8 | V28: =0.25*U28 -> 2 | W28: https://www.homedepot.com/p/Everbilt-1-2-in-Galvanized-Lock-Washer-804176/204647885
T29: DBL Wide Zinc Corner Brace (2.5") | U29: 2 | V29: 3.97 | W29: https://www.homedepot.com/p/Everbilt-2-1-2-in-Zinc-Plated-Double-Wide-Corner-Brace-2-Pack-15052/202034033
T30: Plastic Wheel (6” x 1.5”) | U30: 2 | V30: =5.98*U30 -> 11.96 | W30: https://www.homedepot.com/p/Power-Care-6-in-x-1-1-2-in-Plastic-Wheel-for-Lawn-Mower-460435/100147219
T31: Aluminum or PVC Piping (1.5” x 12”) | U31: 10 | V31: 7.47 | W31: https://www.homedepot.com/p/M-D-Building-Products-12-in-x-12-in-Plain-Aluminum-Sheet-in-Silver-56040/100293264
T32: Small Hinges | U32: 16 | V32: =1.97*U32 -> 31.52 | W32: https://www.homedepot.com/p/Everbilt-1-in-Zinc-Plated-Non-Removable-Pin-Narrow-Utility-Hinges-2-Pack-15161/202034166
T33: Latches | U33: 8 | V33: =3.97 -> 3.97 | W33: https://www.homedepot.com/p/Everbilt-3-1-2-in-Zinc-Plated-Adjustable-Staple-Safety-Hasp-15122/202033919
T34: Drywall Screws (2") | U34: N/A | V34: =5.97*2 -> 11.94 | W34: https://www.homedepot.com/p/Grip-Rite-6-x-1-1-4-in-Philips-Bugle-Head-Coarse-Thread-Sharp-Point-Drywall-Screws-1-lb-Pack-114CDWS1/100152392
T35: Untreated Wood (2" x 2") | U35: N/A | V35: =8.65*12 -> 103.8 | W35: https://www.homedepot.com/p/2-in-x-2-in-x-6-ft-Select-Pine-Board-532157/202531502
T36: Untreated Wood (2" x 4") | U36: N/A | V36: =3.39*8 -> 27.12 | W36: https://www.homedepot.com/p/2-in-x-4-in-x-96-in-Premium-Kiln-Dried-Whitewood-Stud-161640/202091220
T37: Untreated Wood (2" x 8") | U37: N/A | V37: =13.17*4 -> 52.68 | W37: https://www.homedepot.com/p/2-in-x-8-in-x-12-ft-2-Prime-Ground-Contact-Pressure-Treated-Lumber-107523/206937453
T38: Untreated Plywood Sheet | U38: N/A | V38: =16.25*3 -> 48.75 | W38: https://www.homedepot.com/p/7-16-in-x-48-in-x-8ft-Oriented-Strand-Board-386081/202106230
T40: Total Cost | V40: =SUM(V25:V39) -> 390.05

Sheet Hybrid_Hoop (hidden)
A1: Hybrid Hoop Coop
S2: Poultry Butler
S6: 5 Watt Solar Panel
S10: Water Heater
S14: Solar Interior Light
S18: Chicken Cam
N23: Hybrid Coop Coop
N24: Material | O24: Quantity | P24: Price | Q24: Souce of Price
N25: Lumber
N26: 2in x 4in x 12ft | O26: 4 | P26: =7.37*4 -> 29.48 | Q26: https://www.homedepot.com/p/WeatherShield-2-in-x-4-in-x-12-ft-2-Prime-Ground-Contact-Pressure-Treated-Lumber-253920/206967813
N27: 2in x 4in x 6ft | O27: 11 | P27: =3.62*11 -> 39.82 | Q27: https://www.homedepot.com/p/2-in-x-4-in-x-8-ft-2-Ground-Contact-Pressure-Treated-Lumber-106147/206970948
N28: 2in x 4in x 2ft | O28: 6 | P28: 7.37 | Q28: https://www.homedepot.com/p/WeatherShield-2-in-x-4-in-x-12-ft-2-Prime-Ground-Contact-Pressure-Treated-Lumber-253920/206967813
N29: 2in x 4in x 5ft 8in | O29: 3 | P29: =3.62*3 -> 10.86 | Q29: https://www.homedepot.com/p/2-in-x-4-in-x-8-ft-2-Ground-Contact-Pressure-Treated-Lumber-106147/206970948
N30: 2in x 4in x 1ft 5 in | O30: 4 | P30: 3.62 | Q30: https://www.homedepot.com/p/2-in-x-4-in-x-8-ft-2-Ground-Contact-Pressure-Treated-Lumber-106147/206970948
N31: 2in x 4in x 14ft | O31: 1 | P31: 10.17 | Q31: https://www.homedepot.com/p/WeatherShield-2-in-x-4-in-x-16-ft-2-Prime-Ground-Contact-Pressure-Treated-Lumber-253920/206967809
N32: 2in x 4in x 2ft | O32: 2 | P32: 3.39 | Q32: https://www.homedepot.com/p/2-in-x-4-in-x-96-in-Premium-Kiln-Dried-Whitewood-Stud-161640/202091220
N33: 1in x 2in x 3ft 6in | O33: 2 | P33: 3.39 | Q33: https://www.homedepot.com/p/2-in-x-4-in-x-96-in-Premium-Kiln-Dried-Whitewood-Stud-161640/202091220
N34: 1in x 2in x 5ft 6in | O34: 2 | P34: 10.17 | Q34: https://www.homedepot.com/p/WeatherShield-2-in-x-4-in-x-16-ft-2-Prime-Ground-Contact-Pressure-Treated-Lumber-253920/206967809
N35: 1in x 2in x 1ft 10in | O35: 4 | P35: 3.39 | Q35: https://www.homedepot.com/p/2-in-x-4-in-x-96-in-Premium-Kiln-Dried-Whitewood-Stud-161640/202091220
N36: 1in x 2in x 2ft | O36: 2 | P36: 3.39 | Q36: https://www.homedepot.com/p/2-in-x-4-in-x-96-in-Premium-Kiln-Dried-Whitewood-Stud-161640/202091220
N37: 4in x 4in x 8in | O37: 2 | P37: =9.17*2 -> 18.34 | Q37: https://www.homedepot.com/p/4-in-x-4-in-x-8-ft-2-Ground-Contact-Pressure-Treated-Southern-Yellow-Pine-Timber-194354/205220341
N38: Nest Boxes (1ft 6in x 1ft 6in x 2ft) | O38: 4 | P38: =9.99*4 -> 39.96 | Q38: https://www.tractorsupply.com/tsc/product/ware-chick-n-nesting-box-2008711?cm_mmc=feed-_-GoogleShopping-_-Product-_-2008711&gclid=EAIaIQobChMIyqT0847l1wIVGFcNCh22MQYWEAkYAyABEgKZdfD_BwE
N39: Cattle Panel | O39: N/A | P39: 26.98 | Q39: https://www.homedepot.com/p/Everbilt-1-2-in-x-2-ft-x-25-ft-19-Gauge-Steel-Hardware-Cloth-308224EB/205960837
N40: Hardware Cloth | O40: N/A | P40: 79.63 | Q40: https://www.homedepot.com/p/Acorn-International-1-2-in-x-4-ft-x-50-ft-Hardware-Cloth-HC24850/300180179
N41: Tractor Wheels (8", 2.5" thick) | O41: 2 | P41: =11.38*2 -> 22.76 | Q41: https://www.homedepot.com/p/Power-Care-8-in-Universal-Wheel-490-322-H011/202251534
N42: Drywall Screws (2") | O42: N/A | P42: =5.97*2 -> 11.94 | Q42: https://www.homedepot.com/p/Grip-Rite-6-x-1-1-4-in-Philips-Bugle-Head-Coarse-Thread-Sharp-Point-Drywall-Screws-1-lb-Pack-114CDWS1/100152392
N43: Total Cost | P43: =SUM(P25:P42) -> 324.66

Sheet Enclosed_Coop (hidden)
A1: Fully Enclosed Coop | AB1: Poultry Butler
C2: With Removable Roof | T2: Open without Supports
AB5: 5 Watt Solar Panel
AB9: Water Heater
AB13: Solar Interior Light
AB17: Chicken Cam
Q35: Fully Enclosed Coop
Q36: Material | R36: Quantity | S36: Price | T36: Souce of Price
Q37: For Frame:
Q38: Untreated Plywood
Q39: 2’’ X 4’’ X 12’ | R39: 4 | S39: =7.37*4 -> 29.48 | T39: https://www.homedepot.com/p/WeatherShield-2-in-x-4-in-x-12-ft-2-Prime-Ground-Contact-Pressure-Treated-Lumber-253920/206967813
Q40: 2’’ X 4’’ X 8’ | R40: 6 | S40: =3.62*R40 -> 21.72 | T40: https://www.homedepot.com/p/2-in-x-4-in-x-8-ft-2-Ground-Contact-Pressure-Treated-Lumber-106147/206970948
Q41: 2’’ X 4’’ X 4’ | R41: 12 | S41: =4*7.37 -> 29.48 | T41: https://www.homedepot.com/p/WeatherShield-2-in-x-4-in-x-12-ft-2-Prime-Ground-Contact-Pressure-Treated-Lumber-291224/301837037
Q42: 2’’ X 4’’ X 20’ | R42: 1 | S42: 10.17 | T42: https://www.homedepot.com/p/WeatherShield-2-in-x-4-in-x-16-ft-2-Prime-Ground-Contact-Pressure-Treated-Lumber-291224/301837043
Q43: 4’’ X 4’’ X 20’ | R43: 4 | S43: =10.17*2*R43 -> 81.36 | T43: https://www.homedepot.com/p/4-in-x-4-in-x-12-ft-2-Ground-Contact-Pressure-Treated-Timber-288741/301913698
Q44: 1/8’’ X 4’’ X 12’ | R44: 2 | S44: =4.27*R44 -> 8.54 | T44: https://www.homedepot.com/p/WeatherShield-1-in-x-4-in-x-8-ft-Ground-Contact-Pressure-Treated-Board-253915/206973928
Q45: For Front Door:
Q46: Untreated Plywood
Q47: 2’’ X 2’’ X 4’ | R47: 4 | S47: 4.72 | T47: https://www.homedepot.com/p/WeatherShield-2-in-x-4-in-x-8-ft-2-Prime-Ground-Contact-Pressure-Treated-Lumber-291224/301836994
Q48: 2’’ X 2’’ X 6’ | R48: 1 | S48: 8.65 | T48: https://www.homedepot.com/p/2-in-x-2-in-x-6-ft-Select-Pine-Board-532157/202531502
Q49: 1/8’’ X 4’’ X 6’ | R49: 1 | S49: 7.12 | T49: https://www.homedepot.com/p/1-in-x-4-in-x-6-ft-Select-Kiln-Dried-Square-Edge-Whitewood-Board-489257/100090825
Q50: Hinges | R50: 2 | S50: =1.97*R50 -> 3.94 | T50: https://www.homedepot.com/p/Everbilt-1-in-Zinc-Plated-Non-Removable-Pin-Narrow-Utility-Hinges-2-Pack-15161/202034166
Q51: Slide Latch Bolt | R51: 1 | S51: 4.97 | T51: https://www.homedepot.com/p/Everbilt-Black-Slide-Bolt-15261/202042229
Q52: Picture Frame Attachments | R52: 3 | S52: =0.77*R52 -> 2.31 | T52: https://www.homedepot.com/p/Everbilt-3-3-4-in-Steel-Screw-In-Plant-Hook-01212/202305418
Q53: For Two Side Doors
Q54: Untreated Plywood
Q55: 2’’ X 2’’ X 4’ | R55: 8 | S55: =2*4.72 -> 9.44 | T55: https://www.homedepot.com/p/WeatherShield-2-in-x-4-in-x-8-ft-2-Prime-Ground-Contact-Pressure-Treated-Lumber-291224/301836994
Q56: 2’’ X 2’’ X 8’ | R56: 1 | S56: 3.57 | T56: https://www.homedepot.com/p/WeatherShield-2-in-x-2-in-x-8-ft-1-Pressure-Treated-Lumber-302477/100023713
Q57: Hinges | R57: 4 | S57: =1.97*R57 -> 7.88 | T57: https://www.homedepot.com/p/Everbilt-1-in-Zinc-Plated-Non-Removable-Pin-Narrow-Utility-Hinges-2-Pack-15161/202034166
Q58: Slide Latch Bolts | R58: 2 | S58: =4.97*R58 -> 9.94 | T58: https://www.homedepot.com/p/Everbilt-Black-Slide-Bolt-15261/202042229
Q59: For Floor
Q60: Untreated Plywood
Q61: 1/8’’ X 4’’ X 8’ | R61: 1 | S61: 4.27 | T61: https://www.homedepot.com/p/WeatherShield-1-in-x-4-in-x-8-ft-Ground-Contact-Pressure-Treated-Board-253915/206973928
Q62: 2’’ X 4’’ X 1’ | R62: 1 | S62: 3.62 | T62: https://www.homedepot.com/p/2-in-x-4-in-x-8-ft-2-Ground-Contact-Pressure-Treated-Lumber-288639/301837041
Q63: Hinges | R63: 6 | S63: =1.97*R63 -> 11.82 | T63: https://www.homedepot.com/p/Everbilt-1-in-Zinc-Plated-Non-Removable-Pin-Narrow-Utility-Hinges-2-Pack-15161/202034166
Q64: Latches | R64: 6 | S64: =4.97*R64 -> 29.82 | T64: https://www.homedepot.com/p/Everbilt-Black-Slide-Bolt-15261/202042229
Q65: Chicken Wire | R65: 1 | S65: 21.48 | T65: https://www.homedepot.com/p/Everbilt-1-in-x-2-ft-x-50-ft-Poultry-Netting-308411EB/205960872
Q66: Drywall Screws (2") | R66: N/A | S66: =5.97*2 -> 11.94 | T66: https://www.homedepot.com/p/Grip-Rite-6-x-1-1-4-in-Philips-Bugle-Head-Coarse-Thread-Sharp-Point-Drywall-Screws-1-lb-Pack-114CDWS1/100152392
Q67: Total Cost | S67: =SUM(S37:S66) -> 326.24

Sheet Premade_Coop (hidden)
A1: Premade Coop | AB1: Poultry Butler
AB5: 5 Watt Solar Panel
AB9: Water Heater
AB13: Solar Interior Light
AB17: Chicken Cam
D64: Pros | S64: Premade Coop
E65: Little to no Assembly | S65: Material | T65: Price | U65: Souce of Price
E66: Assured Quality from previous purchasers | S66: Coop | T66: 484.99 | U66: https://www.houzz.com/product/87137206-pawhut-large-backyard-hen-house-chicken-coop-w-long-run-144-contemporary-small-pet-supplies
D67: Cons | S67: Tractor Wheels (2) | T67: =11.38*2 -> 22.76 | U67: https://www.homedepot.com/p/Power-Care-8-in-Universal-Wheel-490-322-H011/202251534
E68: Higher Cost | S68: Handle (2" x 4" x 4') x3 | T68: 7.37 | U68: https://www.homedepot.com/p/WeatherShield-2-in-x-4-in-x-12-ft-2-Prime-Ground-Contact-Pressure-Treated-Lumber-291224/301837037
E69: Not designed with the mobility in mind | S69: Drywall Screws (2") | T69: =5.97 -> 5.97 | U69: https://www.homedepot.com/p/Grip-Rite-6-x-1-1-4-in-Philips-Bugle-Head-Coarse-Thread-Sharp-Point-Drywall-Screws-1-lb-Pack-114CDWS1/100152392
E70: Customization hard with pre-built structure | S70: Total Cost | T70: =SUM(T66:T68) -> 515.12

Sheet System
A1: Chicken Tractor Pick and Choose Economical Calculator
A3: Coop Design
B4: Hoop Coop | F4: Hybrid Hoop Coop | J4: Fully Enclosed Coop | N4: Premade Design
R13: Assumed Life of Tractor is 10 years
R14: (Based on lifespan of treated wood, 10-15 years)
B15: =Materials!C33 -> 390.05 | F15: =Materials!G33 -> 324.66 | J15: =Materials!K33 -> 326.24 | N15: =Materials!B41 -> 515.12 | R15: Number of Years Chosen | U15: 10
A18: Breed
B19: Pearl White Leghorn | E19: Blue Andalusian | H19: Barred Rock | K19: Assumed Number of Chickens
M20: Pearl White Leghorn | O20: 0
M21: Blue Andalusian | O21: 0
M22: Barred Rock | O22: 0
M23: Total | O23: =SUM(O20:O22) -> 0
B28: Cost Per | C28: =Materials!B46 -> 4.45 | E28: Cost Per | F28: =Materials!E46 -> 4.7 | H28: Cost Per | I28: =Materials!H46 -> 4.45
B29: x25 | C29: =Materials!B47 -> 111.25 | E29: x25 | F29: =Materials!E47 -> 117.5 | H29: x25 | I29: =Materials!H47 -> 111.25
A32: Features
B33: Poultry Butler | E33: 5 Watt Solar Array | H33: Chicken Cam | K33: Coop Interior Light | N33: Water Heater
B43: =Materials!C52 -> 179.99 | E43: =Materials!C53 -> 57 | H43: =Materials!C54 -> 129.99 | K43: =Materials!C55 -> 23.43 | N43: =Materials!C56 -> 57
A46: Feeder
B47: Traditional | E47: Automatic
B57: =Materials!C57 -> 26.95 | E57: =Materials!C58 -> 97
B58: Choose | E58: Choose
A60: Feed (Prices will Adjust With the Quantity of Chickens Chosen)
B61: Organic (25 lbs) | E61: Traditional (25 lbs) | H61: Bedding (12 lbs) | K61: Assumed Number of Chickens | O61: =O23 -> 0
K62: A chicken requires about 1/4 lb of food per day | ON62: 0
ON63: 0
ON64: 0
B70: Price based on # of Chickens | E70: Price based on # of Chickens | H70: Price based on coop size
B71: =((O23*0.25*30)/25)*Materials!C70 -> 0 | E71: =((O23*0.25*30)/25)*Materials!C71 -> 0 | H71: =Materials!C59 -> 24.59
B72: Choose | E72: Choose
A75: Cost Breakdown
A77: Initial Cost: | C77: 0 | F77: Monthly Recurring Cost: | I77: 0 | N77: Reset Calculation
F78: Annual Costs | I78: =I77*12 -> 0
A80: Salvage Value: | C80: 0 | F80: Lifetime Costs: | H80: =-(I77*12)-(C77*Time_Conversion_Factors!B18)+(System!C81*Time_Conversion_Factors!B9) -> 0 | I80: per year
C81: =C80*0.4632 -> 0 | F81: Lifespan: | H81: 10 | I81: years
F82: Interest Rate: | H82: 0.08

Sheet Materials
A1: Hoop Coop | E1: Hybrid Coop Coop | I1: Fully Enclosed Coop
A2: Material | B2: Quantity | C2: Price | D2: Souce of Price | E2: Material | F2: Quantity | G2: Price | H2: Souce of Price | I2: Material | J2: Quantity | K2: Price | L2: Souce of Price
A3: Hardware Cloth | B3: N/A | C3: 79.63 | D3: https://www.homedepot.com/p/Acorn-International-1-2-in-x-4-ft-x-50-ft-Hardware-Cloth-HC24850/300180179 | E3: Lumber | I3: For Frame:
A4: Carriage Bolt (1/4-20” x 4”) | B4: 4 | C4: =0.73*B4 -> 2.92 | D4: https://www.homedepot.com/p/Everbilt-1-4-in-20-tpi-x-4-in-Galvanized-Coarse-Thread-Carriage-Bolt-803396/204633634 | E4: 2in x 4in x 12ft | F4: 4 | G4: =7.37*4 -> 29.48 | H4: https://www.homedepot.com/p/WeatherShield-2-in-x-4-in-x-12-ft-2-Prime-Ground-Contact-Pressure-Treated-Lumber-253920/206967813 | I4: Untreated Plywood
A5: Carriage Bolt (1/2" x 4”) | B5: 2 | C5: =B5*1.16 -> 2.32 | D5: https://www.homedepot.com/p/Everbilt-1-2-in-13-tpi-x-4-in-Zinc-Plated-Coarse-Thread-Carriage-Bolt-800436/204633589 | E5: 2in x 4in x 6ft | F5: 11 | G5: =3.62*11 -> 39.82 | H5: https://www.homedepot.com/p/2-in-x-4-in-x-8-ft-2-Ground-Contact-Pressure-Treated-Lumber-106147/206970948 | I5: 2’’ X 4’’ X 12’ | J5: 4 | K5: =7.37*4 -> 29.48 | L5: https://www.homedepot.com/p/WeatherShield-2-in-x-4-in-x-12-ft-2-Prime-Ground-Contact-Pressure-Treated-Lumber-253920/206967813
A6: Lock Washer (1/2") | B6: 8 | C6: =0.25*B6 -> 2 | D6: https://www.homedepot.com/p/Everbilt-1-2-in-Galvanized-Lock-Washer-804176/204647885 | E6: 2in x 4in x 2ft | F6: 6 | G6: 7.37 | H6: https://www.homedepot.com/p/WeatherShield-2-in-x-4-in-x-12-ft-2-Prime-Ground-Contact-Pressure-Treated-Lumber-253920/206967813 | I6: 2’’ X 4’’ X 8’ | J6: 6 | K6: =3.62*J6 -> 21.72 | L6: https://www.homedepot.com/p/2-in-x-4-in-x-8-ft-2-Ground-Contact-Pressure-Treated-Lumber-106147/206970948
A7: DBL Wide Zinc Corner Brace (2.5") | B7: 2 | C7: 3.97 | D7: https://www.homedepot.com/p/Everbilt-2-1-2-in-Zinc-Plated-Double-Wide-Corner-Brace-2-Pack-15052/202034033 | E7: 2in x 4in x 5ft 8in | F7: 3 | G7: =3.62*3 -> 10.86 | H7: https://www.homedepot.com/p/2-in-x-4-in-x-8-ft-2-Ground-Contact-Pressure-Treated-Lumber-106147/206970948 | I7: 2’’ X 4’’ X 4’ | J7: 12 | K7: =4*7.37 -> 29.48 | L7: https://www.homedepot.com/p/WeatherShield-2-in-x-4-in-x-12-ft-2-Prime-Ground-Contact-Pressure-Treated-Lumber-291224/301837037
A8: Plastic Wheel (6” x 1.5”) | B8: 2 | C8: =5.98*B8 -> 11.96 | D8: https://www.homedepot.com/p/Power-Care-6-in-x-1-1-2-in-Plastic-Wheel-for-Lawn-Mower-460435/100147219 | E8: 2in x 4in x 1ft 5 in | F8: 4 | G8: 3.62 | H8: https://www.homedepot.com/p/2-in-x-4-in-x-8-ft-2-Ground-Contact-Pressure-Treated-Lumber-106147/206970948 | I8: 2’’ X 4’’ X 20’ | J8: 1 | K8: 10.17 | L8: https://www.homedepot.com/p/WeatherShield-2-in-x-4-in-x-16-ft-2-Prime-Ground-Contact-Pressure-Treated-Lumber-291224/301837043
A9: Aluminum or PVC Piping (1.5” x 12”) | B9: 10 | C9: 7.47 | D9: https://www.homedepot.com/p/M-D-Building-Products-12-in-x-12-in-Plain-Aluminum-Sheet-in-Silver-56040/100293264 | E9: 2in x 4in x 14ft | F9: 1 | G9: 10.17 | H9: https://www.homedepot.com/p/WeatherShield-2-in-x-4-in-x-16-ft-2-Prime-Ground-Contact-Pressure-Treated-Lumber-253920/206967809 | I9: 4’’ X 4’’ X 20’ | J9: 4 | K9: =10.17*2*J9 -> 81.36 | L9: https://www.homedepot.com/p/4-in-x-4-in-x-12-ft-2-Ground-Contact-Pressure-Treated-Timber-288741/301913698
A10: Small Hinges | B10: 16 | C10: =1.97*B10 -> 31.52 | D10: https://www.homedepot.com/p/Everbilt-1-in-Zinc-Plated-Non-Removable-Pin-Narrow-Utility-Hinges-2-Pack-15161/202034166 | E10: 2in x 4in x 2ft | F10: 2 | G10: 3.39 | H10: https://www.homedepot.com/p/2-in-x-4-in-x-96-in-Premium-Kiln-Dried-Whitewood-Stud-161640/202091220 | I10: 1/8’’ X 4’’ X 12’ | J10: 2 | K10: =4.27*J10 -> 8.54 | L10: https://www.homedepot.com/p/WeatherShield-1-in-x-4-in-x-8-ft-Ground-Contact-Pressure-Treated-Board-253915/206973928
A11: Latches | B11: 8 | C11: =3.97 -> 3.97 | D11: https://www.homedepot.com/p/Everbilt-3-1-2-in-Zinc-Plated-Adjustable-Staple-Safety-Hasp-15122/202033919 | E11: 1in x 2in x 3ft 6in | F11: 2 | G11: 3.39 | H11: https://www.homedepot.com/p/2-in-x-4-in-x-96-in-Premium-Kiln-Dried-Whitewood-Stud-161640/202091220 | I11: For Front Door:
A12: Drywall Screws (2") | B12: N/A | C12: =5.97*2 -> 11.94 | D12: https://www.homedepot.com/p/Grip-Rite-6-x-1-1-4-in-Philips-Bugle-Head-Coarse-Thread-Sharp-Point-Drywall-Screws-1-lb-Pack-114CDWS1/100152392 | E12: 1in x 2in x 5ft 6in | F12: 2 | G12: 10.17 | H12: https://www.homedepot.com/p/WeatherShield-2-in-x-4-in-x-16-ft-2-Prime-Ground-Contact-Pressure-Treated-Lumber-253920/206967809 | I12: Untreated Plywood
A13: Untreated Wood (2" x 2") | B13: N/A | C13: =8.65*12 -> 103.8 | D13: https://www.homedepot.com/p/2-in-x-2-in-x-6-ft-Select-Pine-Board-532157/202531502 | E13: 1in x 2in x 1ft 10in | F13: 4 | G13: 3.39 | H13: https://www.homedepot.com/p/2-in-x-4-in-x-96-in-Premium-Kiln-Dried-Whitewood-Stud-161640/202091220 | I13: 2’’ X 2’’ X 4’ | J13: 4 | K13: 4.72 | L13: https://www.homedepot.com/p/WeatherShield-2-in-x-4-in-x-8-ft-2-Prime-Ground-Contact-Pressure-Treated-Lumber-291224/301836994
A14: Untreated Wood (2" x 4") | B14: N/A | C14: =3.39*8 -> 27.12 | D14: https://www.homedepot.com/p/2-in-x-4-in-x-96-in-Premium-Kiln-Dried-Whitewood-Stud-161640/202091220 | E14: 1in x 2in x 2ft | F14: 2 | G14: 3.39 | H14: https://www.homedepot.com/p/2-in-x-4-in-x-96-in-Premium-Kiln-Dried-Whitewood-Stud-161640/202091220 | I14: 2’’ X 2’’ X 6’ | J14: 1 | K14: 8.65 | L14: https://www.homedepot.com/p/2-in-x-2-in-x-6-ft-Select-Pine-Board-532157/202531502
A15: Untreated Wood (2" x 8") | B15: N/A | C15: =13.17*4 -> 52.68 | D15: https://www.homedepot.com/p/2-in-x-8-in-x-12-ft-2-Prime-Ground-Contact-Pressure-Treated-Lumber-107523/206937453 | E15: 4in x 4in x 8in | F15: 2 | G15: =9.17*2 -> 18.34 | H15: https://www.homedepot.com/p/4-in-x-4-in-x-8-ft-2-Ground-Contact-Pressure-Treated-Southern-Yellow-Pine-Timber-194354/205220341 | I15: 1/8’’ X 4’’ X 6’ | J15: 1 | K15: 7.12 | L15: https://www.homedepot.com/p/1-in-x-4-in-x-6-ft-Select-Kiln-Dried-Square-Edge-Whitewood-Board-489257/100090825
A16: Untreated Plywood Sheet | B16: N/A | C16: =16.25*3 -> 48.75 | D16: https://www.homedepot.com/p/7-16-in-x-48-in-x-8ft-Oriented-Strand-Board-386081/202106230 | E16: Nest Boxes (1ft 6in x 1ft 6in x 2ft) | F16: 4 | G16: =9.99*4 -> 39.96 | H16: https://www.tractorsupply.com/tsc/product/ware-chick-n-nesting-box-2008711?cm_mmc=feed-_-GoogleShopping-_-Product-_-2008711&gclid=EAIaIQobChMIyqT0847l1wIVGFcNCh22MQYWEAkYAyABEgKZdfD_BwE | I16: Hinges | J16: 2 | K16: =1.97*J16 -> 3.94 | L16: https://www.homedepot.com/p/Everbilt-1-in-Zinc-Plated-Non-Removable-Pin-Narrow-Utility-Hinges-2-Pack-15161/202034166
E17: Cattle Panel | F17: N/A | G17: 26.98 | H17: https://www.homedepot.com/p/Everbilt-1-2-in-x-2-ft-x-25-ft-19-Gauge-Steel-Hardware-Cloth-308224EB/205960837 | I17: Slide Latch Bolt | J17: 1 | K17: 4.97 | L17: https://www.homedepot.com/p/Everbilt-Black-Slide-Bolt-15261/202042229
E18: Hardware Cloth | F18: N/A | G18: 79.63 | H18: https://www.homedepot.com/p/Acorn-International-1-2-in-x-4-ft-x-50-ft-Hardware-Cloth-HC24850/300180179 | I18: Picture Frame Attachments | J18: 3 | K18: =0.77*J18 -> 2.31 | L18: https://www.homedepot.com/p/Everbilt-3-3-4-in-Steel-Screw-In-Plant-Hook-01212/202305418
E19: Tractor Wheels (8", 2.5" thick) | F19: 2 | G19: =11.38*2 -> 22.76 | H19: https://www.homedepot.com/p/Power-Care-8-in-Universal-Wheel-490-322-H011/202251534 | I19: For Two Side Doors
E20: Drywall Screws (2") | F20: N/A | G20: =5.97*2 -> 11.94 | H20: https://www.homedepot.com/p/Grip-Rite-6-x-1-1-4-in-Philips-Bugle-Head-Coarse-Thread-Sharp-Point-Drywall-Screws-1-lb-Pack-114CDWS1/100152392 | I20: Untreated Plywood
I21: 2’’ X 2’’ X 4’ | J21: 8 | K21: =2*4.72 -> 9.44 | L21: https://www.homedepot.com/p/WeatherShield-2-in-x-4-in-x-8-ft-2-Prime-Ground-Contact-Pressure-Treated-Lumber-291224/301836994
I22: 2’’ X 2’’ X 8’ | J22: 1 | K22: 3.57 | L22: https://www.homedepot.com/p/WeatherShield-2-in-x-2-in-x-8-ft-1-Pressure-Treated-Lumber-302477/100023713
I23: Hinges | J23: 4 | K23: =1.97*J23 -> 7.88 | L23: https://www.homedepot.com/p/Everbilt-1-in-Zinc-Plated-Non-Removable-Pin-Narrow-Utility-Hinges-2-Pack-15161/202034166
I24: Slide Latch Bolts | J24: 2 | K24: =4.97*J24 -> 9.94 | L24: https://www.homedepot.com/p/Everbilt-Black-Slide-Bolt-15261/202042229
I25: For Floor
I26: Untreated Plywood
I27: 1/8’’ X 4’’ X 8’ | J27: 1 | K27: 4.27 | L27: https://www.homedepot.com/p/WeatherShield-1-in-x-4-in-x-8-ft-Ground-Contact-Pressure-Treated-Board-253915/206973928
I28: 2’’ X 4’’ X 1’ | J28: 1 | K28: 3.62 | L28: https://www.homedepot.com/p/2-in-x-4-in-x-8-ft-2-Ground-Contact-Pressure-Treated-Lumber-288639/301837041
I29: Hinges | J29: 6 | K29: =1.97*J29 -> 11.82 | L29: https://www.homedepot.com/p/Everbilt-1-in-Zinc-Plated-Non-Removable-Pin-Narrow-Utility-Hinges-2-Pack-15161/202034166
I30: Latches | J30: 6 | K30: =4.97*J30 -> 29.82 | L30: https://www.homedepot.com/p/Everbilt-Black-Slide-Bolt-15261/202042229
I31: Chicken Wire | J31: 1 | K31: 21.48 | L31: https://www.homedepot.com/p/Everbilt-1-in-x-2-ft-x-50-ft-Poultry-Netting-308411EB/205960872
I32: Drywall Screws (2") | J32: N/A | K32: =5.97*2 -> 11.94 | L32: https://www.homedepot.com/p/Grip-Rite-6-x-1-1-4-in-Philips-Bugle-Head-Coarse-Thread-Sharp-Point-Drywall-Screws-1-lb-Pack-114CDWS1/100152392
A33: Total Cost | C33: =SUM(C3:C32) -> 390.05 | E33: Total Cost | G33: =SUM(G3:G32) -> 324.66 | I33: Total Cost | K33: =SUM(K3:K32) -> 326.24
A35: Premade Coop
A36: Material | B36: Price | C36: Souce of Price
A37: Coop | B37: 484.99 | C37: https://www.houzz.com/product/87137206-pawhut-large-backyard-hen-house-chicken-coop-w-long-run-144-contemporary-small-pet-supplies
A38: Tractor Wheels (2) | B38: =11.38*2 -> 22.76 | C38: https://www.homedepot.com/p/Power-Care-8-in-Universal-Wheel-490-322-H011/202251534
A39: Handle (2" x 4" x 4') x3 | B39: 7.37 | C39: https://www.homedepot.com/p/WeatherShield-2-in-x-4-in-x-12-ft-2-Prime-Ground-Contact-Pressure-Treated-Lumber-291224/301837037
A40: Drywall Screws (2") | B40: =5.97 -> 5.97 | C40: https://www.homedepot.com/p/Grip-Rite-6-x-1-1-4-in-Philips-Bugle-Head-Coarse-Thread-Sharp-Point-Drywall-Screws-1-lb-Pack-114CDWS1/100152392
A41: Total Cost | B41: =SUM(B37:B39) -> 515.12
A44: Pearl White Leghorn | D44: Blue Andalusian | G44: Barred Rock
A45: Quantity | B45: Price | C45: Souce of Price | D45: Quantity | E45: Price | F45: Souce of Price | G45: Quantity | H45: Price | I45: Souce of Price
A46: 1 | B46: 4.45 | C46: https://www.strombergschickens.com/product/White-Lehorn-Chicks/white-egg-layers | D46: 1 | E46: 4.7 | F46: https://www.strombergschickens.com/product/Blue-Andalusian-Chicks/white-egg-layers | G46: 1 | H46: 4.45 | I46: https://www.strombergschickens.com/product/Barred-Rock-Chicks/brown-egg-layers
A47: 25 | B47: =B46*A47 -> 111.25 | C47: https://www.strombergschickens.com/product/White-Lehorn-Chicks/white-egg-layers | D47: 25 | E47: =D47*E46 -> 117.5 | F47: https://www.strombergschickens.com/product/Blue-Andalusian-Chicks/white-egg-layers | G47: 25 | H47: =G47*H46 -> 111.25 | I47: https://www.strombergschickens.com/product/Barred-Rock-Chicks/brown-egg-layers
A48: 50 | B48: =A48*B46 -> 222.5 | C48: https://www.strombergschickens.com/product/White-Lehorn-Chicks/white-egg-layers | D48: 50 | E48: =D48*E46 -> 235 | F48: https://www.strombergschickens.com/product/Blue-Andalusian-Chicks/white-egg-layers | G48: 50 | H48: =G48*H46 -> 222.5 | I48: https://www.strombergschickens.com/product/Barred-Rock-Chicks/brown-egg-layers
A50: Tractor Features
A51: Material | B51: Quantity | C51: Price | D51: Souce of Price
A52: Poultry Butler | B52: 1 | C52: 179.99 | D52: http://www.poultrybutler.com/
A53: 5 Watt Solar Array | B53: 1 | C53: =57*B53 -> 57 | D53: https://www.batterystuff.com/solar-chargers/5-10-watts/12-volt-solar-panels/solarland-12v-5-watt-solar-panel-slp005-12u-w.html
A54: Chicken Cam | B54: 1 | C54: 129.99 | D54: https://reolink.com/
A55: Coop Interior Light | B55: 1 | C55: 23.43 | D55: https://www.walmart.com/ip/Designers-Edge-10-LED-Rechargeable-Solar-Panel-Shed-Light/23546848?action=product_interest&action_type=title&beacon_version=1.0.2&bucket_id=irsbucketdefault&client_guid=3dc09071-3be0-431d-326f-faca01d2be12&config_id=106&customer_id_enc&findingMethod=p13n&guid=3dc09071-3be0-431d-326f-faca01d2be12&item_id=23546848&parent_anchor_item_id=37568187&parent_item_id=37568187&placement_id=irs-106-t1&reporter=recommendations&source=new_site&strategy=PWVAV&visitor_id=e_1RCoPLgrE7ijNq-bOHXQ
A56: Water heater | B56: 1 | C56: 57 | D56: https://www.strombergschickens.com/product/3-Gallon-Fount-With-Heated-Base/fount-heaters
A57: Traditional Feeder | B57: 1 | C57: 26.95 | D57: https://www.strombergschickens.com/product/plastic-watering-trough-30-inches/water-pans-and-troughs
A58: Automatic Feeder | B58: 1 | C58: 97 | D58: https://www.strombergschickens.com/product/dura-fount-automatic-trough-waterer/water-pans-and-troughs
A59: Poultry Bedding | B59: 12 lbs | C59: 24.59 | D59: https://www.amazon.com/dp/B00AQ4D3EU/ref=asc_df_B00AQ4D3EU5284746/?tag=hyprod-20&creative=395009&creativeASIN=B00AQ4D3EU&linkCode=df0&hvadid=167151987585&hvpos=1o2&hvnetw=g&hvrand=17329725019312998982&hvpone=&hvptwo=&hvqmt=&hvdev=c&hvdvcmdl=&hvlocint=&hvlocphy=9006948&hvtargid=pla-310401262049
A60: Total | C60: =SUM(C52:C59)-C59-C58-C57 -> 447.41
A68: Feed
A69: Feed Type | B69: Quantity | C69: Price | D69: Souce of Price
A70: Organic | B70: 25 lbs | C70: 25.95 | D70: https://www.strombergschickens.com/category/Organic-Poultry-Feed
A71: Traditional | B71: 25 lbs | C71: 11.5 | D71: https://www.strombergschickens.com/category/Chicken-Feed

Sheet Future_Work
A1: Future Work Page
A2: Solar Tractor, battery charged sustainably
B3: Power Source
C4: Charged by Meche capstone wind turbine (talk to Duda)
C5: Charged by charging station at greenhouse
B6: Automated
C7: CS majors automate and keep on 'grid'
A8: Potential Revenue Stream from egg production | G8: Allows other majors to get involved
A9: More than 1 tractor as possible option, rehabilitate all of Lafarm land
A11: Solar Tractor
A12: Summation
B13: reduce need for manual lab
A16: Power Sources
B17: Charged by Meche capstone wind turbine (talk to Duda)
B18: Charged by charging station at greenhouse
A21: Automation
M30: all these together allow for potential interdisciplinary and community engagement
A31: Revenue Stream | N31: econ for revenue
A32: Summation | N32: me, Cs, ece for tractor
B33: potential for more than one tractor, calculate how many tractors per acre
B34: how many eggs can be produced, sold for how much
A36: Local organic market
B37: local ag movement
A41: Egg Production and quality assurance
B42: attach all policy for egg cleaning, automation for cleaning

Sheet Time_Conversion_Factors
A1: Interest Rate Page
A2: Lifetime: | B2: =System!U15 -> 10 | C2: years
A3: Interest Rate | B3: =(System!$H$82)*100 -> 8 | C3: %
A5: A/F
A6: years | B6: 10 | C6: 11 | D6: 12 | E6: 13 | F6: 14 | G6: 15
A7: interest (%) | B7: --- | C7: --- | D7: --- | E7: --- | F7: --- | G7: ---
A8: 7 | B8: 0.0725 | C8: 0.0634 | D8: 0.0559 | E8: 0.0497 | F8: 0.0443 | G8: 0.0398
A9: 8 | B9: 0.069 | C9: 0.0601 | D9: 0.0527 | E9: 0.0465 | F9: 0.0413 | G9: 0.0368
A10: 9 | B10: 0.0658 | C10: 0.0569 | D10: 0.0497 | E10: 0.0436 | F10: 0.0384 | G10: 0.0341
A11: 10 | B11: 0.0627 | C11: 0.054 | D11: 0.0468 | E11: 0.0408 | F11: 0.0357 | G11: 0.0315
A14: A/P
A15: years | B15: 10 | C15: 11 | D15: 12 | E15: 13 | F15: 14 | G15: 15
A16: interest (%) | B16: --- | C16: --- | D16: --- | E16: --- | F16: --- | G16: ---
A17: 7 | B17: 0.1424 | C17: 0.1334 | D17: 0.1259 | E17: 0.1197 | F17: 0.1143 | G17: 0.1098
A18: 8 | B18: 0.149 | C18: 0.1401 | D18: 0.1327 | E18: 0.1265 | F18: 0.1213 | G18: 0.1168
A19: 9 | B19: 0.1558 | C19: 0.1469 | D19: 0.1397 | E19: 0.1336 | F19: 0.1284 | G19: 0.1241
A20: 10 | B20: 0.1627 | C20: 0.154 | D20: 0.1468 | E20: 0.1408 | F20: 0.1357 | G20: 0.1315
